fUSD/lending_fUSD_20260531
["ID","MTS","AMOUNT","RATE_DAILY","PERIOD"]
[423491678,1780162244000,-500.0,0.00013698,2]
[423491687,1780162244000,-505.94594791,0.00013698,2]
[423491688,1780162244000,-500.0,0.00013698,2]
[423491690,1780162244000,-500.0,0.00013698,2]
[423491689,1780162244000,-500.0,0.00013698,2]
[423491691,1780162244000,-500.0,0.00013698,2]
[423491693,1780162244000,-500.0,0.00013698,2]
[423491692,1780162244000,-500.0,0.00013698,2]
[423491685,1780162244000,-500.0,0.00013698,2]
[423491694,1780162244000,-500.0,0.00013698,2]
[423491760,1780162245000,-500.0,0.00013698,2]
[423491758,1780162245000,-500.0,0.00013698,2]
[423491757,1780162245000,-500.0,0.00013698,2]
[423491755,1780162245000,-500.0,0.00013698,2]
[423491756,1780162245000,-500.0,0.00013698,2]
[423491751,1780162245000,-1344.57,0.00013698,2]
[423491750,1780162245000,-1344.57,0.00013698,2]
[423491752,1780162245000,-500.0,0.00013698,2]
[423491759,1780162245000,-500.0,0.00013698,2]
[423491753,1780162245000,-500.0,0.00013698,2]
[423491754,1780162245000,-500.0,0.00013698,2]
[423491762,1780162245000,-500.0,0.00013698,2]
[423491773,1780162245000,-151.0,0.00013699,2]
[423491764,1780162245000,-500.0,0.00013698,2]
[423491761,1780162245000,-500.0,0.00013698,2]
[423491768,1780162245000,-2500.0,0.00013699,2]
[423491767,1780162245000,-500.0,0.00013698,2]
[423491765,1780162245000,-500.0,0.00013698,2]
[423491769,1780162245000,-166.66,0.00013699,2]
[423491774,1780162245000,-151.0,0.00013699,2]
[423491770,1780162245000,-151.0,0.00013699,2]
[423491771,1780162245000,-151.0,0.00013699,2]
[423491772,1780162245000,-151.0,0.00013699,2]
[423491775,1780162245000,-151.0,0.00013699,2]
[423491749,1780162245000,-1344.57,0.00013698,2]
[423491763,1780162245000,-500.0,0.00013698,2]
[423491748,1780162245000,-1344.57,0.00013698,2]
[423491729,1780162245000,-543.14,0.00013698,2]
[423491745,1780162245000,-1344.57,0.00013698,2]
[423491716,1780162245000,-500.0,0.00013698,2]
[423491717,1780162245000,-500.0,0.00013698,2]
[423491721,1780162245000,-500.0,0.00013698,2]
[423491719,1780162245000,-500.0,0.00013698,2]
[423491724,1780162245000,-500.0,0.00013698,2]
[423491723,1780162245000,-500.0,0.00013698,2]
[423491725,1780162245000,-500.0,0.00013698,2]
[423491726,1780162245000,-543.14,0.00013698,2]
[423491777,1780162245000,-151.0,0.00013699,2]
[423491727,1780162245000,-543.14,0.00013698,2]
[423491728,1780162245000,-543.14,0.00013698,2]
[423491732,1780162245000,-543.14,0.00013698,2]
[423491747,1780162245000,-1344.57,0.00013698,2]
[423491731,1780162245000,-543.14,0.00013698,2]
[423491733,1780162245000,-500.0,0.00013698,2]
[423491734,1780162245000,-500.0,0.00013698,2]
[423491735,1780162245000,-500.0,0.00013698,2]
[423491737,1780162245000,-500.0,0.00013698,2]
[423491736,1780162245000,-500.0,0.00013698,2]
[423491741,1780162245000,-500.0,0.00013698,2]
[423491740,1780162245000,-500.0,0.00013698,2]
[423491739,1780162245000,-500.0,0.00013698,2]
[423491738,1780162245000,-500.0,0.00013698,2]
[423491742,1780162245000,-500.0,0.00013698,2]
[423491743,1780162245000,-500.0,0.00013698,2]
[423491744,1780162245000,-500.0,0.00013698,2]
[423491730,1780162245000,-543.14,0.00013698,2]
[423491776,1780162245000,-151.0,0.00013699,2]
[423491746,1780162245000,-1344.57,0.00013698,2]
[423491781,1780162245000,-151.0,0.00013699,2]
[423491810,1780162245000,-2000.0,0.00014332,2]
[423491814,1780162245000,-1004.48,0.00014417,2]
[423491808,1780162245000,-166.66,0.00014247,2]
[423491811,1780162245000,-166.66,0.00014384,2]
[423491813,1780162245000,-1238.99758836,0.000144,2]
[423491812,1780162245000,-10468.10573176,0.0001439,2]
[423491815,1780162245000,-998.78,0.00014566,2]
[423491819,1780162245000,-500.0,0.00014999,2]
[423491817,1780162245000,-801.43019345,0.000148,2]
[423491820,1780162245000,-500.0,0.00014999,2]
[423491816,1780162245000,-215.58360558,0.00014656,2]
[423491821,1780162245000,-500.0,0.00014999,2]
[423491832,1780162245000,-449.90624979,0.00015,2]
[423491826,1780162245000,-500.0,0.00014999,2]
[423491825,1780162245000,-500.0,0.00014999,2]
[423491824,1780162245000,-1344.57,0.00014999,2]
[423491822,1780162245000,-3557.79982436,0.00014999,2]
[423491827,1780162245000,-500.0,0.00014999,2]
[423491830,1780162245000,-1000.0,0.00015,2]
[423491829,1780162245000,-81679.49035547,0.00015,2]
[423491831,1780162245000,-74034.50289067,0.00015,2]
[423491828,1780162245000,-500.0,0.00014999,2]
[423491834,1780162245000,-16068.11167834,0.00015,2]
[423491835,1780162245000,-4983.84366645,0.00015,2]
[423491833,1780162245000,-11163.82275779,0.00015,2]
[423491778,1780162245000,-151.0,0.00013699,2]
[423491823,1780162245000,-1344.57,0.00014999,2]
[423491809,1780162245000,-506.49,0.0001428,2]
[423491818,1780162245000,-3200.0,0.000149,5]
[423491807,1780162245000,-1839.60337747,0.0001421,7]
[423491780,1780162245000,-151.0,0.00013699,2]
[423491806,1780162245000,-166.66,0.0001411,2]
[423491782,1780162245000,-151.0,0.00013699,2]
[423491785,1780162245000,-151.0,0.00013699,2]
[423491787,1780162245000,-151.0,0.00013699,2]
[423491784,1780162245000,-151.0,0.00013699,2]
[423491783,1780162245000,-151.0,0.00013699,2]
[423491786,1780162245000,-151.0,0.00013699,2]
[423491790,1780162245000,-151.0,0.00013699,2]
[423491792,1780162245000,-151.0,0.00013699,2]
[423491788,1780162245000,-151.0,0.00013699,2]
[423491791,1780162245000,-151.0,0.00013699,2]
[423491793,1780162245000,-151.0,0.00013699,2]
[423491779,1780162245000,-151.0,0.00013699,2]
[423491789,1780162245000,-151.0,0.00013699,2]
[423491797,1780162245000,-1004.48,0.00013761,2]
[423491804,1780162245000,-265.79243738,0.00014,30]
[423491795,1780162245000,-279.960539,0.00013699,2]
[423491799,1780162245000,-2400.0,0.000139,5]
[423491798,1780162245000,-166.66,0.00013836,2]
[423491796,1780162245000,-200.0,0.00013699,2]
[423491800,1780162245000,-166.66,0.00013973,2]
[423491802,1780162245000,-1026.22803777,0.0001399,2]
[423491801,1780162245000,-1432.52,0.00013986,2]
[423491803,1780162245000,-1500.0,0.00014,2]
[423491805,1780162245000,-1004.48,0.00014089,2]
[423491794,1780162245000,-151.0,0.00013699,2]
[423491848,1780162246000,-4114.69251522,0.00015,2]
[423491849,1780162246000,-11794.54087767,0.00015,2]
[423491847,1780162246000,-756.06984647,0.00015,2]
[423491851,1780162246000,-506.0,0.00015,2]
[423491852,1780162246000,-705.87310525,0.00015,2]
[423491853,1780162246000,-8549.86714896,0.00015,2]
[423491850,1780162246000,-1827.6199696,0.00015,2]
[423491863,1780163431000,-390.37,0.0001195,2]
[423491878,1780163432000,-500.0,0.00012649,2]
[423491879,1780163432000,-500.0,0.00012649,2]
[423491871,1780163432000,-1099.21860058,0.00012582,2]
[423491873,1780163432000,-266.12,0.00012597,2]
[423491875,1780163432000,-209.35689879,0.0001264,2]
[423491876,1780163432000,-1200.0,0.00012648,2]
[423491877,1780163432000,-1018.0,0.00012649,2]
[423491870,1780163432000,-251.65559575,0.00012561,2]
[423491872,1780163432000,-447.38139942,0.00012582,2]
[423491869,1780163432000,-1732.08919103,0.00012561,2]
[423491865,1780163432000,-300.39,0.00012158,2]
[423491866,1780163432000,-153.16,0.00012336,2]
[423491867,1780163432000,-99.46968653,0.00012468,2]
[423491868,1780163432000,-146.92031347,0.00012468,2]
[423491864,1780163432000,-269.2,0.0001195,2]
[423491874,1780163432000,-965.21021658,0.000126,2]
[423491880,1780163432000,-458.07401307,0.00012649,2]
[423491883,1780163432000,-500.0,0.00012649,2]
[423491887,1780163432000,-8746.99044034,0.0001265,2]
[423491886,1780163432000,-22427.79787928,0.0001265,2]
[423491906,1780163432000,-6836.79683122,0.0001265,2]
[423491898,1780163432000,-500.0,0.00012647,2]
[423491900,1780163432000,-1773.34697329,0.0001265,2]
[423491893,1780163432000,-180042.71419659,0.0001265,2]
[423491896,1780163432000,-236.47694369,0.00012647,2]
[423491895,1780163432000,-1254.41808677,0.0001265,2]
[423491904,1780163432000,-500.0,0.00012647,2]
[423491891,1780163432000,-46320.77439318,0.0001265,2]
[423491888,1780163432000,-1158.45634641,0.0001265,2]
[423491889,1780163432000,-483764.00081557,0.0001265,2]
[423491884,1780163432000,-180.72843797,0.00012649,2]
[423491882,1780163432000,-339.72833635,0.00012649,2]
[423491885,1780163432000,-500.0,0.00012649,2]
[423491890,1780163432000,-57036.83123607,0.0001265,2]
[423491881,1780163432000,-500.0,0.00012649,2]
[423491955,1780163438000,-150.0,0.00012877,2]
[423491956,1780163438000,-500.0,0.00012877,2]
[423491951,1780163438000,-500.0,0.00012877,2]
[423491953,1780163438000,-158.79341703,0.00012877,2]
[423491952,1780163438000,-500.0,0.00012877,2]
[423491950,1780163438000,-500.0,0.00012877,2]
[423491954,1780163438000,-500.0,0.00012877,2]
[423491948,1780163438000,-500.0,0.00012877,2]
[423491946,1780163438000,-150.0,0.00012877,2]
[423491957,1780163438000,-500.0,0.00012877,2]
[423491949,1780163438000,-250.0,0.00012877,2]
[423491959,1780163438000,-500.0,0.00012877,2]
[423491971,1780163438000,-500.0,0.00012877,2]
[423491958,1780163438000,-500.0,0.00012877,2]
[423491961,1780163438000,-500.0,0.00012877,2]
[423491962,1780163438000,-500.0,0.00012877,2]
[423491967,1780163438000,-500.0,0.00012877,2]
[423491963,1780163438000,-500.0,0.00012877,2]
[423491965,1780163438000,-500.0,0.00012877,2]
[423491947,1780163438000,-150.0,0.00012877,2]
[423491964,1780163438000,-500.0,0.00012877,2]
[423491966,1780163438000,-500.0,0.00012877,2]
[423491969,1780163438000,-500.0,0.00012877,2]
[423491968,1780163438000,-500.0,0.00012877,2]
[423491970,1780163438000,-500.0,0.00012877,2]
[423491972,1780163438000,-500.0,0.00012877,2]
[423491960,1780163438000,-609.45801931,0.00012877,2]
[423491945,1780163438000,-150.0,0.00012877,2]
[423491938,1780163438000,-3900.0,0.000128,4]
[423491943,1780163438000,-150.0,0.00012877,2]
[423491915,1780163438000,-304.0,0.00012647,2]
[423491916,1780163438000,-196.0,0.00012647,2]
[423491917,1780163438000,-500.0,0.00012647,2]
[423491918,1780163438000,-200.0,0.00012647,2]
[423491919,1780163438000,-236.42829031,0.00012647,2]
[423491921,1780163438000,-1129293.56880128,0.0001265,2]
[423491920,1780163438000,-263.57170969,0.00012647,2]
[423491923,1780163438000,-153.16,0.00012661,2]
[423491922,1780163438000,-1500000.0,0.0001265,2]
[423491924,1780163438000,-1900.0,0.000127,4]
[423491925,1780163438000,-200.0,0.000127,4]
[423491926,1780163438000,-200.0,0.000127,4]
[423491931,1780163438000,-4726.56318739,0.0001275,2]
[423491927,1780163438000,-150.0,0.00012749,2]
[423491929,1780163438000,-201.671,0.0001275,2]
[423491928,1780163438000,-2411.263,0.0001275,2]
[423491930,1780163438000,-2092.75179619,0.0001275,2]
[423491933,1780163438000,-5000.0,0.0001275,2]
[423491932,1780163438000,-2500.0,0.0001275,2]
[423491935,1780163438000,-30387.9911,0.0001275,2]
[423491937,1780163438000,-199.81301046,0.00012777,2]
[423491942,1780163438000,-500.0,0.00012877,2]
[423491941,1780163438000,-2000.0,0.0001285,2]
[423491936,1780163438000,-6813.0253,0.0001275,2]
[423491940,1780163438000,-400.0,0.000128,4]
[423491939,1780163438000,-400.0,0.000128,4]
[423491934,1780163438000,-4175.8268,0.0001275,2]
[423491944,1780163438000,-150.0,0.00012877,2]
[423491973,1780163438000,-500.0,0.00012877,2]
[423491981,1780163438000,-500.0,0.0001315,2]
[423491976,1780163438000,-5900.0,0.000129,4]
[423492017,1780163438000,-275.39800743,0.00013151,2]
[423492009,1780163438000,-500.0,0.0001315,2]
[423492008,1780163438000,-403.39597363,0.0001315,2]
[423492010,1780163438000,-500.0,0.0001315,2]
[423492011,1780163438000,-500.0,0.0001315,2]
[423492012,1780163438000,-500.0,0.0001315,2]
[423492014,1780163438000,-500.0,0.0001315,2]
[423492013,1780163438000,-500.0,0.0001315,2]
[423492015,1780163438000,-500.0,0.0001315,2]
[423492016,1780163438000,-242.0,0.0001315,2]
[423492019,1780163438000,-500.0,0.00013151,2]
[423492020,1780163438000,-500.0,0.00013151,2]
[423492007,1780163438000,-500.0,0.0001315,2]
[423492022,1780163438000,-247.48052146,0.00013151,2]
[423492023,1780163438000,-150.0,0.00013151,2]
[423492029,1780163438000,-150.0,0.00013151,2]
[423492021,1780163438000,-500.0,0.00013151,2]
[423492030,1780163438000,-500.0,0.00013151,2]
[423492028,1780163438000,-500.0,0.00013151,2]
[423492026,1780163438000,-500.0,0.00013151,2]
[423492025,1780163438000,-150.0,0.00013151,2]
[423492027,1780163438000,-150.0,0.00013151,2]
[423492031,1780163438000,-500.0,0.00013151,2]
[423492033,1780163438000,-150.0,0.00013151,2]
[423492032,1780163438000,-500.0,0.00013151,2]
[423491974,1780163438000,-500.0,0.00012877,2]
[423492024,1780163438000,-500.0,0.00013151,2]
[423492006,1780163438000,-500.0,0.0001315,2]
[423492018,1780163438000,-500.0,0.00013151,2]
[423492000,1780163438000,-199.01434305,0.0001315,2]
[423492004,1780163438000,-500.0,0.0001315,2]
[423491979,1780163438000,-153.16,0.00012986,2]
[423491980,1780163438000,-500.0,0.0001315,2]
[423491978,1780163438000,-600.0,0.000129,4]
[423491977,1780163438000,-600.0,0.000129,4]
[423491982,1780163438000,-500.0,0.0001315,2]
[423491984,1780163438000,-500.0,0.0001315,2]
[423491983,1780163438000,-500.0,0.0001315,2]
[423491985,1780163438000,-501.07256824,0.0001315,2]
[423491986,1780163438000,-150.0,0.0001315,2]
[423491987,1780163438000,-150.0,0.0001315,2]
[423491988,1780163438000,-209.03326579,0.0001315,2]
[423491992,1780163438000,-388.56670401,0.0001315,2]
[423491989,1780163438000,-500.0,0.0001315,2]
[423491975,1780163438000,-545.4069827,0.00012877,2]
[423491997,1780163438000,-500.0,0.0001315,2]
[423491991,1780163438000,-500.0,0.0001315,2]
[423491998,1780163438000,-500.0,0.0001315,2]
[423492001,1780163438000,-500.0,0.0001315,2]
[423492002,1780163438000,-500.0,0.0001315,2]
[423491999,1780163438000,-500.0,0.0001315,2]
[423492003,1780163438000,-500.0,0.0001315,2]
[423491995,1780163438000,-500.0,0.0001315,2]
[423491996,1780163438000,-500.0,0.0001315,2]
[423491994,1780163438000,-500.0,0.0001315,2]
[423491993,1780163438000,-500.0,0.0001315,2]
[423491990,1780163438000,-500.0,0.0001315,2]
[423492005,1780163438000,-500.0,0.0001315,2]
[423492068,1780163439000,-500.0,0.00013698,2]
[423492074,1780163439000,-549.93789521,0.00013698,2]
[423492070,1780163439000,-500.0,0.00013698,2]
[423492069,1780163439000,-500.0,0.00013698,2]
[423492078,1780163439000,-500.0,0.00013698,2]
[423492059,1780163439000,-500.0,0.00013698,2]
[423492076,1780163439000,-500.0,0.00013698,2]
[423492067,1780163439000,-500.0,0.00013698,2]
[423492064,1780163439000,-500.0,0.00013698,2]
[423492062,1780163439000,-500.0,0.00013698,2]
[423492072,1780163439000,-500.0,0.00013698,2]
[423492077,1780163439000,-500.0,0.00013698,2]
[423492075,1780163439000,-500.0,0.00013698,2]
[423492084,1780163439000,-500.0,0.00013698,2]
[423492073,1780163439000,-407.88275073,0.00013698,2]
[423492079,1780163439000,-500.0,0.00013698,2]
[423492081,1780163439000,-419.13,0.00013698,2]
[423492080,1780163439000,-500.0,0.00013698,2]
[423492086,1780163439000,-500.0,0.00013698,2]
[423492082,1780163439000,-500.0,0.00013698,2]
[423492083,1780163439000,-500.0,0.00013698,2]
[423492085,1780163439000,-500.0,0.00013698,2]
[423492090,1780163439000,-500.0,0.00013698,2]
[423492089,1780163439000,-500.0,0.00013698,2]
[423492088,1780163439000,-500.0,0.00013698,2]
[423492087,1780163439000,-500.0,0.00013698,2]
[423492071,1780163439000,-500.0,0.00013698,2]
[423492061,1780163439000,-500.0,0.00013698,2]
[423492034,1780163439000,-500.0,0.00013151,2]
[423492065,1780163439000,-500.0,0.00013698,2]
[423492094,1780163439000,-500.0,0.00013698,2]
[423492035,1780163439000,-500.0,0.00013151,2]
[423492042,1780163439000,-500.0,0.00013151,2]
[423492038,1780163439000,-500.0,0.00013151,2]
[423492037,1780163439000,-500.0,0.00013151,2]
[423492036,1780163439000,-250.0,0.00013151,2]
[423492041,1780163439000,-500.0,0.00013151,2]
[423492040,1780163439000,-500.0,0.00013151,2]
[423492039,1780163439000,-500.0,0.00013151,2]
[423492043,1780163439000,-632.91659185,0.00013151,2]
[423492044,1780163439000,-153.16,0.0001331,2]
[423492053,1780163439000,-500.0,0.00013698,2]
[423492054,1780163439000,-500.0,0.00013698,2]
[423492055,1780163439000,-500.0,0.00013698,2]
[423492045,1780163439000,-361.78934864,0.00013374,2]
[423492046,1780163439000,-207.11562252,0.00013424,2]
[423492052,1780163439000,-500.0,0.00013698,2]
[423492051,1780163439000,-500.0,0.00013698,2]
[423492049,1780163439000,-500.0,0.00013698,2]
[423492050,1780163439000,-500.0,0.00013698,2]
[423492047,1780163439000,-659.57,0.00013443,2]
[423492048,1780163439000,-153.16,0.00013635,2]
[423492056,1780163439000,-500.0,0.00013698,2]
[423492057,1780163439000,-500.0,0.00013698,2]
[423492066,1780163439000,-500.0,0.00013698,2]
[423492058,1780163439000,-500.0,0.00013698,2]
[423492060,1780163439000,-500.0,0.00013698,2]
[423492063,1780163439000,-500.0,0.00013698,2]
[423492093,1780163439000,-500.0,0.00013698,2]
[423492091,1780163439000,-500.0,0.00013698,2]
[423492095,1780163439000,-500.0,0.00013698,2]
[423492127,1780163439000,-200.0,0.00013699,2]
[423492130,1780163439000,-1842.0,0.00013699,2]
[423492132,1780163439000,-1842.0,0.00013699,2]
[423492142,1780163439000,-1842.0,0.00013699,2]
[423492141,1780163439000,-1842.0,0.00013699,2]
[423492135,1780163439000,-1842.0,0.00013699,2]
[423492138,1780163439000,-1842.0,0.00013699,2]
[423492136,1780163439000,-1842.0,0.00013699,2]
[423492137,1780163439000,-1842.0,0.00013699,2]
[423492131,1780163439000,-1842.0,0.00013699,2]
[423492134,1780163439000,-1842.0,0.00013699,2]
[423492133,1780163439000,-1842.0,0.00013699,2]
[423492140,1780163439000,-1842.0,0.00013699,2]
[423492143,1780163439000,-1842.0,0.00013699,2]
[423492147,1780163439000,-1842.0,0.00013699,2]
[423492144,1780163439000,-1842.0,0.00013699,2]
[423492145,1780163439000,-1842.0,0.00013699,2]
[423492146,1780163439000,-1842.0,0.00013699,2]
[423492148,1780163439000,-1842.0,0.00013699,2]
[423492149,1780163439000,-1842.0,0.00013699,2]
[423492150,1780163439000,-1842.0,0.00013699,2]
[423492151,1780163439000,-1842.0,0.00013699,2]
[423492153,1780163439000,-806.95648043,0.00013699,2]
[423492152,1780163439000,-1843.82970576,0.00013699,2]
[423492154,1780163439000,-806.95648043,0.00013699,2]
[423492155,1780163439000,-806.95648043,0.00013699,2]
[423492092,1780163439000,-500.0,0.00013698,2]
[423492125,1780163439000,-500.0,0.00013698,2]
[423492126,1780163439000,-166.66,0.00013699,2]
[423492139,1780163439000,-1842.0,0.00013699,2]
[423492123,1780163439000,-500.0,0.00013698,2]
[423492128,1780163439000,-2500.0,0.00013699,2]
[423492098,1780163439000,-500.0,0.00013698,2]
[423492099,1780163439000,-500.0,0.00013698,2]
[423492097,1780163439000,-500.0,0.00013698,2]
[423492100,1780163439000,-500.0,0.00013698,2]
[423492102,1780163439000,-500.0,0.00013698,2]
[423492096,1780163439000,-156.8613884,0.00013698,2]
[423492103,1780163439000,-500.0,0.00013698,2]
[423492104,1780163439000,-500.0,0.00013698,2]
[423492106,1780163439000,-500.0,0.00013698,2]
[423492108,1780163439000,-500.0,0.00013698,2]
[423492105,1780163439000,-500.0,0.00013698,2]
[423492107,1780163439000,-500.0,0.00013698,2]
[423492109,1780163439000,-500.0,0.00013698,2]
[423492101,1780163439000,-500.0,0.00013698,2]
[423492120,1780163439000,-500.0,0.00013698,2]
[423492112,1780163439000,-500.0,0.00013698,2]
[423492121,1780163439000,-500.0,0.00013698,2]
[423492124,1780163439000,-500.0,0.00013698,2]
[423492122,1780163439000,-342.52037554,0.00013698,2]
[423492119,1780163439000,-500.0,0.00013698,2]
[423492129,1780163439000,-1842.0,0.00013699,2]
[423492113,1780163439000,-500.0,0.00013698,2]
[423492111,1780163439000,-500.0,0.00013698,2]
[423492115,1780163439000,-500.0,0.00013698,2]
[423492110,1780163439000,-500.0,0.00013698,2]
[423492114,1780163439000,-500.0,0.00013698,2]
[423492116,1780163439000,-500.0,0.00013698,2]
[423492197,1780163440000,-806.95648043,0.00013699,2]
[423492216,1780163440000,-166.66,0.00013973,2]
[423492198,1780163440000,-806.95648043,0.00013699,2]
[423492196,1780163440000,-806.95648043,0.00013699,2]
[423492195,1780163440000,-806.95648043,0.00013699,2]
[423492184,1780163440000,-806.95648043,0.00013699,2]
[423492186,1780163440000,-806.95648043,0.00013699,2]
[423492191,1780163440000,-806.95648043,0.00013699,2]
[423492185,1780163440000,-806.95648043,0.00013699,2]
[423492189,1780163440000,-806.95648043,0.00013699,2]
[423492199,1780163440000,-806.95648043,0.00013699,2]
[423492188,1780163440000,-806.95648043,0.00013699,2]
[423492194,1780163440000,-806.95648043,0.00013699,2]
[423492202,1780163440000,-806.95648043,0.00013699,2]
[423492205,1780163440000,-806.95648043,0.00013699,2]
[423492201,1780163440000,-806.95648043,0.00013699,2]
[423492200,1780163440000,-806.95648043,0.00013699,2]
[423492204,1780163440000,-806.95648043,0.00013699,2]
[423492206,1780163440000,-806.95648043,0.00013699,2]
[423492215,1780163440000,-1680.0,0.00013913,2]
[423492208,1780163440000,-806.95648043,0.00013699,2]
[423492214,1780163440000,-166.66,0.00013836,2]
[423492209,1780163440000,-806.95648043,0.00013699,2]
[423492213,1780163440000,-163.44,0.000137,2]
[423492210,1780163440000,-806.95648043,0.00013699,2]
[423492207,1780163440000,-806.95648043,0.00013699,2]
[423492211,1780163440000,-806.95648043,0.00013699,2]
[423492212,1780163440000,-806.95648043,0.00013699,2]
[423492203,1780163440000,-806.95648043,0.00013699,2]
[423492190,1780163440000,-806.95648043,0.00013699,2]
[423492159,1780163440000,-806.95648043,0.00013699,2]
[423492187,1780163440000,-806.95648043,0.00013699,2]
[423492156,1780163440000,-806.95648043,0.00013699,2]
[423492157,1780163440000,-806.95648043,0.00013699,2]
[423492158,1780163440000,-806.95648043,0.00013699,2]
[423492162,1780163440000,-806.95648043,0.00013699,2]
[423492164,1780163440000,-806.95648043,0.00013699,2]
[423492165,1780163440000,-806.95648043,0.00013699,2]
[423492163,1780163440000,-806.95648043,0.00013699,2]
[423492166,1780163440000,-806.95648043,0.00013699,2]
[423492160,1780163440000,-806.95648043,0.00013699,2]
[423492161,1780163440000,-806.95648043,0.00013699,2]
[423492167,1780163440000,-806.95648043,0.00013699,2]
[423492169,1780163440000,-806.95648043,0.00013699,2]
[423492179,1780163440000,-806.95648043,0.00013699,2]
[423492181,1780163440000,-806.95648043,0.00013699,2]
[423492168,1780163440000,-806.95648043,0.00013699,2]
[423492176,1780163440000,-806.95648043,0.00013699,2]
[423492172,1780163440000,-806.95648043,0.00013699,2]
[423492173,1780163440000,-806.95648043,0.00013699,2]
[423492170,1780163440000,-806.95648043,0.00013699,2]
[423492177,1780163440000,-806.95648043,0.00013699,2]
[423492178,1780163440000,-806.95648043,0.00013699,2]
[423492174,1780163440000,-806.95648043,0.00013699,2]
[423492175,1780163440000,-806.95648043,0.00013699,2]
[423492180,1780163440000,-806.95648043,0.00013699,2]
[423492182,1780163440000,-806.95648043,0.00013699,2]
[423492192,1780163440000,-806.95648043,0.00013699,2]
[423492193,1780163440000,-806.95648043,0.00013699,2]
[423492183,1780163440000,-806.95648043,0.00013699,2]
[423492171,1780163440000,-806.95648043,0.00013699,2]
[423492217,1780163440000,-250.0,0.00014,2]
[423492236,1780163440000,-151.0,0.00014997,2]
[423492220,1780163440000,-2000.0,0.00014257,2]
[423492244,1780163440000,-500.0,0.00014999,2]
[423492255,1780163440000,-500.0,0.00014999,2]
[423492254,1780163440000,-500.0,0.00014999,2]
[423492265,1780163440000,-500.0,0.00015,2]
[423492257,1780163440000,-402971.57119249,0.00015,2]
[423492267,1780163440000,-500.0,0.00015,2]
[423492262,1780163440000,-200.0,0.00015,2]
[423492264,1780163440000,-500.0,0.00015,2]
[423492266,1780163440000,-500.0,0.00015,2]
[423492260,1780163440000,-163.28,0.00015,2]
[423492256,1780163440000,-301.80996815,0.00014999,2]
[423492259,1780163440000,-151.0,0.00015,2]
[423492258,1780163440000,-487167.25832499,0.00015,2]
[423492251,1780163440000,-500.0,0.00014999,2]
[423492263,1780163440000,-500.0,0.00015,2]
[423492268,1780163440000,-500.0,0.00015,2]
[423492270,1780163440000,-500.0,0.00015,2]
[423492279,1780163440000,-500.0,0.00015,2]
[423492280,1780163440000,-500.0,0.00015,2]
[423492269,1780163440000,-500.0,0.00015,2]
[423492271,1780163440000,-500.0,0.00015,2]
[423492274,1780163440000,-500.0,0.00015,2]
[423492278,1780163440000,-500.0,0.00015,2]
[423492277,1780163440000,-500.0,0.00015,2]
[423492275,1780163440000,-500.0,0.00015,2]
[423492273,1780163440000,-500.0,0.00015,2]
[423492276,1780163440000,-500.0,0.00015,2]
[423492218,1780163440000,-166.66,0.0001411,2]